bitfinex/quotes_ETHUSD_20241108
["timestamp","ask_amount","ask_price","bid_price","bid_amount"]
[1731050618527,3.55,2900.1,2899.3,0.776]
[1731050619793,15.79,2900.1,2899.3,0.776]
[1731050624240,15.24,2900.1,2899.6,3.33859717]
[1731050624542,12.24,2900.1,2899.8,0.8054]
[1731050624735,12.24,2900.7,2899.8,0.8054]
[1731050624900,12.24,2900.7,2899.9,3.3827639]
[1731050625300,12.24,2900.7,2899.9,0.04416673]
[1731050625496,1.30224,2900.6,2899.9,0.04416673]
[1731050625947,0.55,2900.5,2899.9,0.04416673]
[1731050626235,0.55,2900.6,2899.9,0.04416673]
[1731050626613,3.55,2900.6,2899.9,0.04416673]
[1731050627117,0.8097,2901.3,2900.3,0.7788]
[1731050627304,12.24,2901.2,2900.3,1.19053972]
[1731050627500,12.24,2901.2,2900.4,0.04401699]
[1731050628019,12.24,2901.2,2900.3,0.7788]
[1731050628332,3.55,2901.1,2900.3,0.7788]
[1731050629840,3.55,2901.1,2900.4,0.04401699]
[1731050630854,3.55,2900.9,2900.4,0.04401699]
[1731050631147,0.55,2900.7,2900.4,0.04401699]
[1731050631348,0.55,2900.7,2900.3,0.7788]
[1731050631553,0.55,2900.8,2900.3,0.7788]
[1731050631857,0.55,2900.8,2900.4,0.04376556]
[1731050632223,0.55,2900.8,2900.3,0.7788]
[1731050632754,15.24,2900.9,2900.4,0.04376556]
[1731050633255,15.24,2900.9,2900.3,0.7788]
[1731050634655,3.0,2901.0,2900.3,0.7788]
[1731050634821,0.55,2900.9,2900.3,0.7788]
[1731050636148,12.24,2901.4,2900.5,3.33859717]
[1731050636460,13.74554639,2901.5,2900.6,1.12295972]
[1731050636629,13.74554639,2901.5,2900.6,0.7891]
[1731050637552,3.55,2901.4,2900.6,0.7891]
[1731050638035,0.55,2901.4,2900.9,0.7797]
[1731050639288,3.55,2901.4,2900.9,0.7797]
[1731050640242,3.0,2901.4,2900.9,0.7797]
[1731050640453,0.71284639,2901.5,2901.1,0.7668]
[1731050640971,0.71284639,2901.5,2901.2,0.04351706]
[1731050642671,0.71284639,2901.5,2901.3,0.8253]
[1731050643186,0.71284639,2901.5,2901.4,0.04324605]
[1731050644455,3.0834429,2901.7,2901.4,0.04324605]
[1731050645281,0.0834429,2901.7,2901.5,0.8234]
[1731050645488,0.0834429,2901.7,2901.6,1.24392432]
[1731050645653,0.0834429,2901.7,2901.6,1.28710546]
[1731050656396,0.0834429,2901.7,2901.6,1.35602189]
[1731050656892,0.0834429,2901.7,2901.6,1.28710546]
[1731050660288,0.0834429,2901.7,2901.6,0.86658114]
[1731050663895,0.0834429,2901.7,2901.6,0.04318114]
[1731050664268,0.0834429,2901.7,2901.4,3.4075208]
[1731050664765,0.0834429,2901.7,2901.5,0.04268741]
[1731050666100,0.0834429,2901.7,2901.6,0.04268741]
[1731050666913,0.0834429,2901.7,2901.0,0.8189]
[1731050667101,0.0834429,2901.7,2901.6,0.04268741]
[1731050667268,0.0834429,2901.7,2901.2,3.33859717]
[1731050667473,0.0834429,2901.7,2901.6,0.04268741]
[1731050667710,0.0834429,2901.7,2901.2,3.33859717]
[1731050667892,0.0834429,2901.7,2901.6,0.04268741]
[1731050668096,0.0834429,2901.7,2901.2,3.33859717]
[1731050668300,0.0834429,2901.7,2901.6,0.04268741]
[1731050668790,0.0834429,2901.7,2901.6,0.38081587]
[1731050669679,0.0834429,2901.7,2901.6,1.20141587]
[1731050669880,0.0834429,2901.7,2901.6,1.27033502]
[1731050670303,0.0834429,2901.7,2901.6,1.20141587]
[1731050673630,0.08675221,2901.8,2901.7,0.8308]
[1731050673784,0.08675221,2901.8,2901.7,0.84039499]
[1731050674118,0.08675221,2901.8,2901.7,1.67119499]
[1731050674426,0.08675221,2901.8,2901.7,1.68119499]
[1731050674625,0.77925221,2903.1,2901.9,0.01]
[1731050674922,1.06926959,2903.7,2902.5,0.8308]
[1731050674923,0.71284639,2903.6,2902.5,0.8308]
[1731050675080,0.4782116,2903.5,2902.5,0.8308]
[1731050675286,0.4782116,2903.5,2902.4,3.33859717]
[1731050675287,0.71284639,2903.5,2902.4,3.33859717]
[1731050675515,0.55,2903.3,2902.4,3.33859717]
[1731050675833,1.26284639,2903.4,2902.4,3.33859717]
[1731050675997,0.55,2903.2,2902.1,3.33859717]
[1731050676187,0.55,2903.2,2902.2,0.04250407]
[1731050676390,0.55,2903.2,2902.2,0.41998012]
[1731050676694,1.26284639,2903.2,2902.2,0.41998012]
[1731050676905,0.55,2903.3,2902.3,0.06890336]
[1731050677416,0.71284639,2903.6,2902.4,3.33859717]
[1731050677730,0.7878,2903.4,2902.4,3.33859717]
[1731050678037,1.23786464,2903.4,2902.4,3.7962049]
[1731050679216,0.7878,2903.4,2902.5,0.8175]
[1731050680726,0.7878,2903.4,2902.7,3.33859717]
[1731050681243,0.7878,2903.4,2902.8,0.04238847]
[1731050681905,0.7878,2903.4,2902.5,0.8175]
[1731050686707,0.7878,2903.4,2902.6,0.06889194]
[1731050687814,0.7878,2903.4,2902.5,0.8175]
[1731050688033,0.7878,2903.4,2902.6,0.41560972]
[1731050688334,0.5278,2903.4,2902.6,0.41560972]
[1731050689132,0.5278,2903.4,2902.7,0.04227004]
[1731050689637,0.5278,2903.4,2902.6,0.41560972]
[1731050691941,0.55,2903.3,2902.0,3.33859717]
[1731050692144,0.8314,2903.0,2902.1,0.7677]
[1731050692452,0.55,2902.9,2902.1,0.7677]
[1731050694245,0.8314,2903.0,2902.1,0.7677]
[1731050694412,0.8314,2903.0,2902.2,0.47953321]
[1731050694607,0.8314,2903.0,2902.2,0.41062972]
[1731050695511,0.8314,2903.0,2902.3,0.8316]
[1731050696051,0.8314,2903.0,2902.3,0.90050352]
[1731050696227,0.8314,2903.0,2902.3,0.8316]
[1731050697109,0.8314,2903.0,2902.3,0.90050304]
[1731050697541,0.8314,2903.0,2902.3,0.8316]
[1731050698237,1.3061,2903.2,2902.3,0.8316]
[1731050698436,1.3061,2903.2,2902.3,0.90050303]
[1731050698954,0.7561,2903.2,2902.3,4.2391002]
[1731050699126,0.7561,2903.2,2902.4,0.46497299]
[1731050699459,3.0,2903.3,2902.5,0.06889805]
[1731050699617,3.0,2903.3,2902.6,0.7701]
[1731050699945,3.0,2903.3,2902.7,0.04239976]
[1731050700150,0.8086,2903.4,2902.7,0.04239976]
[1731050700534,0.8086,2903.4,2902.6,0.7701]
[1731050701449,3.0,2903.3,2902.6,0.7701]
[1731050701823,0.71481332,2903.5,2902.6,0.7701]
[1731050702026,0.71481332,2903.5,2902.5,0.01]
[1731050702027,0.71481332,2903.9,2903.1,0.7536]
[1731050702252,1.52131332,2904.0,2903.1,0.7536]
[1731050702454,1.52131332,2904.0,2903.2,0.04234619]
[1731050702455,1.06585333,2904.0,2903.2,0.04234619]
[1731050702752,1.06585333,2904.0,2903.1,0.7536]
[1731050702926,0.8065,2904.0,2903.3,0.04234619]
[1731050703129,0.8065,2904.0,2903.1,0.7536]
[1731050706215,0.71481332,2904.2,2903.1,0.7536]
[1731050706216,0.55,2904.1,2903.1,0.7536]
[1731050706820,0.7833,2904.2,2903.1,0.7536]
[1731050707230,0.7833,2904.2,2903.2,0.06888053]
[1731050707452,0.7833,2904.2,2903.3,0.805]
[1731050707729,0.7833,2904.2,2903.3,4.2124775]
[1731050708126,0.7833,2904.2,2903.4,0.04223344]
[1731050708325,0.7833,2904.2,2903.5,0.87387786]
[1731050708551,3.0,2904.4,2903.5,0.87387786]
[1731050708552,3.7833,2904.4,2903.5,0.87387786]
[1731050708760,3.7833,2904.4,2903.6,0.04214607]
[1731050708965,3.7833,2904.4,2903.5,1.23047085]
[1731050711771,0.7833,2904.4,2903.5,1.23047085]
[1731050714883,0.7833,2904.4,2903.6,0.813]
[1731050718060,0.1351177,2904.5,2903.6,0.88187177]
[1731050718265,1.73575127,2904.5,2903.6,0.813]
[1731050718437,1.51253814,2904.5,2903.6,0.813]
[1731050718942,1.51253814,2904.5,2903.6,0.88187175]
[1731050719143,0.84993102,2904.5,2903.6,0.88187175]
[1731050719455,0.84993102,2904.5,2903.6,0.813]
[1731050719839,0.1351177,2904.5,2903.6,0.813]
[1731050720034,0.1351177,2904.5,2903.5,0.42547085]
[1731050720035,0.1351177,2904.5,2904.0,3.33859717]
[1731050720275,0.1351177,2904.5,2904.1,0.7739]
[1731050720436,0.1351177,2904.5,2904.2,0.41124972]
[1731050720774,0.1351177,2904.5,2904.1,0.81577265]
[1731050720775,0.1351177,2904.5,2904.1,0.60497165]
[1731050720952,0.1351177,2904.5,2904.3,0.04042787]
[1731050721274,0.1351177,2904.5,2904.1,0.60497165]
[1731050721478,0.1351177,2904.5,2904.4,0.04042787]
[1731050721688,0.1351177,2904.5,2904.1,0.60497165]
[1731050721971,0.1351177,2904.5,2904.2,0.39435688]
[1731050722175,0.1351177,2904.5,2904.2,0.43478193]
[1731050722538,0.1351177,2904.5,2904.3,0.06885755]
[1731050722972,0.1351177,2904.5,2904.4,0.04018839]
[1731050723176,0.1351177,2904.5,2904.2,0.39435688]
[1731050723373,0.1351177,2904.5,2904.4,0.04018839]
[1731050723590,0.1351177,2904.5,2904.3,0.06885404]
[1731050723743,0.1351177,2904.5,2904.4,0.84678839]
[1731050725652,0.1351177,2904.5,2904.4,1.31164782]
[1731050726270,0.1351177,2904.5,2904.4,1.32164782]
[1731050726889,0.1351177,2904.5,2904.4,1.39048501]
[1731050726890,0.0351177,2904.5,2904.4,1.39048501]
[1731050727084,0.0351177,2904.5,2904.4,4.87164782]
[1731050727446,0.8093,2906.4,2904.8,0.01]
[1731050727646,0.8093,2906.4,2905.4,0.2213]
[1731050728185,0.8093,2906.4,2905.5,0.03991525]
[1731050729305,0.8093,2906.4,2905.6,0.7834]
[1731050729511,0.8093,2906.4,2905.7,0.039828]
[1731050730504,0.7816,2906.2,2905.7,0.039828]
[1731050730704,3.0,2906.5,2905.3,0.7702]
[1731050730705,0.7802,2906.0,2905.3,0.7702]
[1731050730908,0.7802,2906.0,2905.4,0.03981112]
[1731050731278,0.7802,2906.0,2905.3,0.7702]
[1731050731605,0.7802,2906.0,2905.4,0.03981112]
[1731050732010,0.7802,2906.0,2905.1,0.7909]
[1731050732313,0.7802,2906.0,2905.5,0.03981112]
[1731050732513,0.7802,2906.0,2905.1,0.7909]
[1731050732671,0.7802,2906.0,2905.2,0.03981112]
[1731050733295,0.55,2905.9,2905.2,0.03981112]
[1731050734905,13.0157,2906.6,2905.2,0.03981112]
[1731050735208,1.37300109,2906.5,2905.5,0.7756]
[1731050735517,0.7757,2906.6,2905.5,0.7756]
[1731050737883,0.55,2906.5,2905.5,0.7756]
[1731050738717,0.7882,2906.4,2905.5,0.7756]
[1731050739011,0.55,2906.3,2905.5,0.7756]
[1731050739374,0.55,2906.3,2904.4,0.01]
[1731050739375,0.55,2906.1,2905.6,0.03950985]
[1731050739575,0.55,2906.1,2905.3,0.775]
[1731050739975,0.55,2906.1,2905.4,0.03950985]
[1731050742627,3.7584,2906.8,2905.5,0.7926]
[1731050742913,1.59984,2906.7,2905.5,0.7926]
[1731050743299,1.59984,2906.7,2905.6,0.90093276]
[1731050743612,1.59984,2906.7,2905.8,0.7926]
[1731050744122,1.59984,2906.7,2905.9,0.03950985]
[1731050744621,0.7584,2906.8,2905.9,0.03950985]
[1731050744986,0.55,2906.7,2905.8,0.7926]
[1731050745411,0.55,2906.7,2905.9,0.03940852]
[1731050745711,0.55,2906.5,2905.8,0.7926]
[1731050746118,0.55,2906.5,2905.9,0.03940852]
[1731050747765,0.55,2906.3,2905.9,0.03940852]
[1731050748260,0.55,2906.3,2905.2,4.09879717]
[1731050748552,0.55,2906.3,2905.3,0.03940852]
[1731050750528,0.55,2906.3,2905.2,4.09879717]
[1731050756265,0.55,2906.1,2905.2,4.09879717]
[1731050757472,0.55,2906.1,2905.2,0.7602]
[1731050757769,0.55,2906.1,2905.3,0.03950985]
[1731050759452,0.8265,2906.0,2905.3,0.03950985]
[1731050759675,0.55,2905.9,2905.2,0.7602]
[1731050762592,0.55,2905.7,2905.2,0.7602]
[1731050765598,0.7769,2905.6,2904.7,0.7842]
[1731050765804,0.55,2905.5,2904.7,0.7842]
[1731050765960,0.55,2905.5,2904.8,0.03840363]
[1731050766288,0.50412109,2905.4,2904.8,0.03840363]
[1731050768464,0.50412109,2905.4,2904.7,0.7842]
[1731050769003,0.50412109,2905.4,2904.8,0.03840363]
[1731050769364,0.50412109,2905.4,2904.9,0.8123]
[1731050769588,0.71431092,2905.7,2905.0,0.8045]
[1731050769900,0.71431092,2905.9,2905.2,0.8045]
[1731050770600,0.71431092,2905.9,2905.3,0.8258]
[1731050770960,13.31146638,2906.1,2905.3,0.8258]
[1731050770961,0.71431092,2906.0,2905.3,0.8258]
[1731050771164,0.71431092,2906.0,2905.6,0.8028]
[1731050771396,0.71431092,2906.1,2905.6,0.8028]
[1731050771601,0.71431092,2906.2,2905.6,0.8028]
[1731050771999,0.71431092,2906.3,2905.6,0.8028]
[1731050772201,0.71431092,2906.3,2905.6,0.87162764]
[1731050772410,0.71431092,2906.4,2905.8,0.7813]
[1731050772714,1.07146638,2906.5,2905.8,0.7813]
[1731050772715,0.71431092,2906.5,2905.8,0.7813]
[1731050773669,1.60251534,2906.4,2905.8,0.7813]
[1731050773906,0.55,2906.4,2905.8,0.7813]
[1731050774910,4.26431092,2906.4,2905.8,0.7813]
[1731050775110,0.55,2906.2,2905.9,0.03817323]
[1731050775533,0.55,2906.2,2905.8,0.7813]
[1731050775688,0.55,2906.4,2905.8,0.7813]
[1731050775899,0.55,2906.5,2905.9,0.03817323]
[1731050776124,1.26431092,2906.5,2905.9,0.03817323]
[1731050776423,4.79788865,2906.5,2905.9,0.03817323]
[1731050777312,0.55,2906.2,2905.9,0.03817323]
[1731050777614,0.55,2906.2,2905.1,0.8038]
[1731050777615,0.01,2905.9,2905.1,0.8038]
[1731050777910,0.01,2905.9,2904.1,0.8038]
[1731050777911,0.55,2905.2,2904.1,0.8038]
[1731050778116,3.71559593,2905.0,2904.2,0.41423972]
[1731050778320,4.51329593,2905.0,2904.2,0.41423972]
[1731050778619,4.60282964,2904.9,2904.1,0.8038]
[1731050778788,0.88728765,2904.8,2904.1,0.8038]
[1731050778978,0.71559593,2904.9,2904.1,0.8038]
[1731050779491,0.71559593,2905.0,2904.1,0.8038]
[1731050780508,1.24951465,2905.0,2904.1,0.8038]
[1731050780924,0.53391872,2905.0,2904.1,4.14239717]
[1731050781424,2.22915496,2905.4,2903.4,0.01]
[1731050781425,3.71559593,2905.5,2904.5,0.8235]
[1731050781647,0.71559593,2905.5,2904.6,0.06884837]
[1731050781802,1.07359122,2905.6,2904.7,0.8235]
[1731050781803,0.71559593,2905.6,2904.7,0.8235]
[1731050782138,0.71559593,2905.7,2904.7,0.8235]
[1731050782449,0.47891872,2905.6,2904.8,0.03191154]
[1731050782944,0.55,2905.5,2904.7,0.8235]
[1731050784013,0.55,2905.5,2904.8,0.03191154]
[1731050784342,0.55,2905.5,2904.7,0.8235]
[1731050784502,0.55,2905.5,2904.8,0.03191154]
[1731050784699,3.71559593,2905.8,2904.7,3.40744553]
[1731050784932,2.15231989,2905.7,2904.9,0.7618]
[1731050785102,1.26559593,2905.7,2904.9,0.7618]
[1731050786040,1.36252849,2905.9,2904.9,0.83064478]
[1731050786041,0.71559593,2905.9,2904.9,0.83064478]
[1731050786345,0.71559593,2905.9,2904.9,0.7618]
[1731050786643,0.71559593,2906.0,2905.0,3.33859717]
[1731050786848,0.71559593,2906.0,2905.2,0.7806]
[1731050787136,0.71559593,2906.1,2905.2,0.7806]
[1731050790009,0.55,2906.1,2905.2,0.7806]
[1731050790946,1.26559593,2906.1,2905.2,0.7806]
[1731050791147,1.26559593,2906.1,2905.2,1.22590569]
[1731050792029,1.26559593,2906.1,2905.3,0.03218084]
[1731050792730,0.55,2905.9,2905.3,0.03218084]
[1731050792937,0.55,2905.9,2904.4,3.33859717]
[1731050792938,5.01659593,2905.9,2904.9,0.7699]
[1731050793134,0.71559593,2905.6,2905.0,0.03122264]
[1731050793469,0.42655959,2905.5,2904.9,0.7699]
[1731050794432,0.55,2905.4,2904.9,0.7699]
[1731050794836,0.55,2905.4,2905.0,0.03122264]
[1731050796466,1.07359122,2905.8,2905.0,0.03122264]
[1731050796467,0.71559593,2905.9,2905.1,4.09229717]
[1731050796647,0.71559593,2906.0,2905.2,0.41923695]
[1731050796849,0.88719093,2905.9,2905.3,0.7537]
[1731050797047,0.71559593,2905.9,2905.3,0.7537]
[1731050797268,0.88722009,2905.8,2905.3,0.7537]
[1731050797563,0.71559593,2905.9,2905.3,0.7537]
[1731050797730,0.71559593,2906.0,2905.3,0.7537]
[1731050798132,0.71559593,2906.1,2905.3,1.16292972]
[1731050798376,3.71559593,2906.2,2905.4,0.03132351]
[1731050798667,1.60286069,2906.1,2905.4,0.03132351]
[1731050798864,0.71559593,2906.1,2905.4,4.16329717]
[1731050799069,0.71559593,2906.5,2905.5,0.89353555]
[1731050799253,0.71559593,2906.7,2905.8,0.8247]
[1731050799630,0.71559593,2906.8,2906.0,0.7873]
[1731050799831,0.71559593,2906.9,2906.0,0.7873]
[1731050800066,1.60266866,2906.8,2906.0,0.7873]
[1731050800310,0.71559593,2906.9,2906.0,0.7873]
[1731050800436,1.78207885,2906.8,2906.0,0.7873]
[1731050800631,0.89551464,2906.8,2906.0,0.7873]
[1731050800872,0.55,2906.7,2906.0,0.7873]
[1731050804093,0.55,2906.9,2906.0,0.7873]
[1731050805204,0.55,2907.0,2906.0,0.7873]
[1731050805502,0.55,2907.0,2906.1,0.06881672]
[1731050805687,0.55,2907.1,2906.2,0.7665]
[1731050806064,2.1516839,2907.1,2906.2,0.7665]
[1731050806403,3.71559593,2907.3,2906.2,0.7665]
[1731050806561,3.71559593,2907.3,2906.3,3.40740731]
[1731050806562,0.71559593,2907.3,2906.3,3.40740731]
[1731050806767,0.1351177,2907.4,2906.4,0.7665]
[1731050807974,0.1351177,2907.4,2907.1,0.7671]
[1731050808177,0.1351177,2907.4,2907.2,0.03064851]
[1731050808485,0.0851177,2907.4,2907.2,0.03064851]
[1731050808694,0.0851177,2907.4,2907.3,0.7671]
[1731050809005,0.0851177,2907.4,2907.3,0.79763935]
[1731050809503,0.0851177,2907.4,2907.3,0.03053935]
[1731050809804,0.0851177,2907.4,2907.0,0.751]
[1731050810117,0.0851177,2907.4,2907.3,0.0304722]
[1731050810338,0.0851177,2907.4,2906.2,3.33859717]
[1731050810463,0.55,2907.3,2906.3,1.15366678]
[1731050810667,0.55,2907.3,2906.3,1.08485972]
[1731050811509,0.0851177,2907.4,2906.5,0.7681]
[1731050811665,0.0851177,2907.4,2906.5,4.10669717]
[1731050811862,0.0851177,2907.4,2906.6,0.41371694]
[1731050812062,0.0851177,2907.4,2906.7,0.7681]
[1731050812691,0.0851177,2907.4,2906.8,0.0304722]
[1731050813002,0.55,2907.3,2906.8,0.0304722]
[1731050813506,0.55,2907.3,2906.7,0.7681]
[1731050813714,0.55,2907.3,2906.9,0.0304722]
[1731050813893,0.0851177,2907.4,2906.7,1.22014141]
[1731050814102,0.0851177,2907.4,2907.0,0.0304722]
[1731050814405,0.0851177,2907.4,2907.1,0.0304722]
[1731050814907,0.0851177,2907.4,2906.7,1.22014141]
[1731050815105,0.0851177,2907.4,2907.2,0.0304722]
[1731050815301,0.0851177,2907.4,2906.7,1.22014141]
[1731050815525,0.0851177,2907.4,2907.3,0.03020346]
[1731050815731,0.0851177,2907.4,2906.7,1.22014141]
[1731050815906,0.0851177,2907.4,2907.3,0.03020346]
[1731050816397,0.0851177,2907.4,2906.7,1.22014141]
[1731050816595,0.0851177,2907.4,2907.3,0.03020346]
[1731050816896,0.0851177,2907.4,2906.7,1.22014141]
[1731050817101,0.0851177,2907.4,2907.3,0.03020346]
[1731050817736,0.0851177,2907.4,2906.7,0.7681]
[1731050817897,0.0851177,2907.4,2907.3,0.03020346]
[1731050818098,0.0851177,2907.4,2906.7,0.7681]
[1731050818299,0.0851177,2907.4,2907.3,0.03020346]
[1731050818494,0.0851177,2907.4,2906.7,0.7681]
[1731050818735,0.0851177,2907.4,2907.3,0.03020346]
[1731050818901,0.0851177,2907.4,2906.7,0.7681]
[1731050819113,0.0851177,2907.4,2907.3,0.03020346]
[1731050819303,0.0851177,2907.4,2906.7,0.7681]
[1731050819497,0.0851177,2907.4,2907.3,0.03020346]
[1731050819729,0.0851177,2907.4,2906.7,0.7681]
[1731050819926,0.0851177,2907.4,2907.3,0.03020346]
[1731050820097,0.0851177,2907.4,2906.7,0.7681]
[1731050820300,0.0851177,2907.4,2907.3,0.03020346]
[1731050820497,0.0851177,2907.4,2906.7,0.7681]
[1731050820730,0.0851177,2907.4,2907.3,0.03020346]
[1731050820923,0.55,2907.8,2906.7,0.7681]
[1731050821435,0.55,2907.8,2906.8,0.03020346]
[1731050824012,0.55,2907.6,2906.8,0.03020346]
[1731050824832,0.55,2907.4,2906.8,0.03020346]
[1731050825241,0.55,2907.4,2906.5,0.7877]
[1731050825532,0.55,2907.4,2906.9,0.03020346]
[1731050825734,0.55,2907.4,2906.5,0.7877]
[1731050825912,0.55,2907.4,2907.0,0.03020346]
[1731050826110,0.55,2907.4,2906.5,0.7877]
[1731050826325,0.55,2907.4,2907.1,0.03020346]
[1731050826516,0.55,2907.4,2906.5,0.85650293]
[1731050826517,0.55,2907.4,2906.5,0.7877]
[1731050827603,0.55,2907.4,2906.5,0.85650292]
[1731050827838,0.55,2907.4,2906.5,0.7877]
[1731050828937,0.8247,2907.5,2906.5,0.7877]
[1731050829103,0.55,2907.4,2906.6,0.41262972]
[1731050831511,0.55,2907.4,2906.5,0.7877]
[1731050832051,0.55,2907.2,2906.2,0.8091]
[1731050832350,0.55,2907.2,2906.2,0.87791051]
[1731050832523,0.55,2907.2,2906.2,0.8091]
[1731050833320,0.55,2907.2,2906.2,1.22386972]
[1731050833920,0.55,2907.2,2906.2,1.29268014]
[1731050834642,0.55,2907.2,2906.2,1.22386972]
[1731050835943,0.8251,2907.7,2906.8,0.7863]
[1731050836256,0.8251,2907.7,2906.8,1.19642552]
[1731050837845,0.55,2907.6,2906.8,1.26522168]
[1731050838067,0.8152,2908.2,2907.0,3.33859717]
[1731050838539,0.7152,2908.2,2907.0,3.33859717]
[1731050839944,0.55,2908.1,2907.0,3.33859717]
[1731050840165,0.55,2908.1,2906.2,0.02]
[1731050840166,0.01,2907.5,2906.5,0.7506]
[1731050840352,0.01,2907.5,2906.1,0.7506]
[1731050840548,0.55,2907.4,2906.1,0.7506]
[1731050840753,2.15137865,2907.4,2906.1,0.7506]
[1731050840975,1.26559593,2907.4,2906.1,0.7506]
[1731050841182,0.55,2907.2,2906.2,0.40891972]
[1731050841574,0.55,2907.0,2906.2,0.40891972]
[1731050844297,0.55,2907.0,2906.1,0.7506]
[1731050844582,0.55,2907.0,2905.2,3.33859717]
[1731050844583,4.26559593,2906.8,2905.8,0.7506]
[1731050844770,1.26559593,2906.8,2905.8,0.7506]
[1731050844964,4.26559593,2906.8,2905.8,0.7506]
[1731050845145,0.55,2906.6,2905.8,1.15951972]
[1731050845745,0.8076,2906.5,2905.8,1.15951972]
[1731050856890,0.8076,2906.5,2905.8,0.40891972]
[1731050857104,0.8275,2906.3,2905.5,0.7824]
[1731050857393,0.8275,2906.3,2905.6,3.33859717]
[1731050863281,0.7275,2906.3,2905.6,3.33859717]
[1731050863474,0.55,2906.2,2905.2,0.7843]
[1731050863701,0.55,2906.2,2905.3,3.33859717]
[1731050863903,0.55,2906.4,2905.3,3.33859717]
[1731050865069,1.26559593,2906.4,2905.3,3.33859717]
[1731050866205,0.55,2906.2,2905.6,3.33859717]
[1731050868410,0.55,2906.2,2905.6,3.67245689]
[1731050870770,0.801,2906.3,2905.9,3.33859717]
[1731050878302,0.701,2906.3,2905.9,3.33859717]
[1731050882186,1.46859593,2906.6,2906.2,3.33859717]
[1731050884527,1.46859593,2906.6,2905.7,0.7613]
[1731050884715,1.46859593,2906.6,2905.9,3.33859717]
[1731050885720,1.60481194,2906.5,2905.9,3.33859717]
[1731050885897,1.46859593,2906.6,2905.9,3.74858689]
[1731050886102,0.88927362,2906.5,2905.9,3.74858689]
[1731050886299,1.46859593,2906.6,2905.9,3.74858689]
[1731050886603,1.6050382,2906.5,2905.9,3.33859717]
[1731050886805,0.7964,2906.4,2905.9,3.33859717]
[1731050888231,1.7092347,2906.3,2905.6,3.33859717]
[1731050888528,1.53539593,2906.3,2905.6,3.33859717]
[1731050888704,0.8198,2906.3,2905.7,0.33385972]
[1731050888907,0.8198,2906.3,2905.9,3.33859717]
[1731050889293,0.71559593,2906.5,2906.2,3.33859717]
[1731050889726,0.7973,2906.6,2906.2,3.33859717]
[1731050890199,0.7973,2906.6,2906.2,3.67245689]
[1731050890402,0.6973,2906.6,2906.2,3.67245689]
[1731050890599,0.6973,2906.6,2906.5,3.33859717]
[1731050891919,0.55,2906.9,2906.5,3.33859717]
[1731050892328,0.71559593,2907.0,2906.5,3.33859717]
[1731050892329,0.55,2907.0,2906.5,3.33859717]
[1731050892835,1.26559593,2907.0,2906.5,3.33859717]
[1731050893130,0.55,2907.0,2906.5,3.33859717]
[1731050893332,0.7741,2906.9,2906.5,3.33859717]
[1731050898260,0.7741,2906.9,2906.5,3.67245689]
[1731050898436,0.55,2907.1,2906.8,3.33859717]
[1731050898605,0.7592,2907.5,2906.8,3.33859717]
[1731050898806,0.7592,2907.5,2907.1,3.33859717]
[1731050899002,0.7592,2907.5,2907.1,3.67245689]
[1731050901345,0.7592,2907.5,2907.4,3.33859717]
[1731050901842,0.71559593,2908.0,2907.4,3.33859717]
[1731050902051,1.3273,2907.9,2907.4,3.33859717]
[1731050902853,1.3273,2907.9,2907.7,3.33859717]
[1731050904023,0.7773,2907.9,2907.7,3.33859717]
[1731050908244,0.7773,2907.9,2907.7,3.67245689]
[1731050908470,0.7762,2908.5,2907.7,3.67245689]
[1731050908680,0.55,2908.2,2907.7,3.33859717]
[1731050911762,0.55,2908.6,2908.0,3.33859717]
[1731050912002,0.55,2908.4,2908.0,3.33859717]
[1731050918466,4.08066756,2909.3,2907.2,0.01]
[1731050918467,1.52317837,2909.3,2908.4,0.7651]
[1731050918673,1.52317837,2910.0,2909.2,3.33859717]
[1731050918883,0.8094,2910.0,2908.7,0.7651]
[1731050919106,0.8094,2910.0,2909.1,3.33859717]
[1731050919306,0.8094,2910.0,2909.5,1.52957902]
[1731050919518,0.8094,2910.0,2909.3,1.52957902]
[1731050920121,0.7094,2910.0,2909.2,1.52957902]
[1731050920404,0.7094,2910.0,2909.4,1.52957902]
[1731050920829,0.55,2909.9,2909.4,1.52957902]
[1731050921433,0.7094,2910.0,2909.2,4.07914336]
[1731050922421,0.7094,2910.0,2909.5,3.31404336]
[1731050923832,0.7094,2910.0,2909.8,3.31404336]
[1731050924043,0.8188,2910.2,2909.8,3.31404336]
[1731050924201,0.55,2910.1,2909.8,3.31404336]
[1731050925739,0.8188,2910.2,2909.8,3.31404336]
[1731050925942,0.1351177,2910.3,2909.8,3.31404336]
[1731050926657,0.1351177,2910.3,2910.1,3.31404336]
[1731050928419,0.1351177,2910.3,2909.8,3.7264277]
[1731050929058,0.1351177,2910.3,2910.1,3.31404336]
[1731050929261,0.1351177,2910.3,2909.9,0.8206]
[1731050929558,0.1351177,2910.3,2909.9,4.13464336]
[1731050929861,0.7612,2910.2,2909.4,3.31404336]
[1731050930238,0.7612,2910.2,2909.3,0.8206]
[1731050930239,0.55,2910.1,2909.3,0.8206]
[1731050930431,0.7612,2910.2,2909.7,3.31404336]
[1731050932315,0.7612,2910.2,2909.3,0.8206]
[1731050932623,0.7612,2910.2,2909.5,3.31404336]
[1731050933126,0.7612,2910.2,2909.5,3.7275077]
[1731050933346,0.55,2910.1,2909.5,3.7275077]
[1731050933552,0.55,2909.9,2909.1,3.31404336]
[1731050933851,0.55,2909.9,2909.1,4.06954336]
[1731050935145,0.7817,2909.8,2909.1,4.06954336]
[1731050935321,0.55,2909.7,2909.1,4.4764977]
[1731050936263,0.55,2909.7,2909.1,3.7209977]
[1731050936845,0.55,2909.7,2909.1,3.31404336]
[1731050937078,0.817,2909.6,2908.2,0.7542]
[1731050937289,0.55,2909.5,2908.9,3.31404336]
[1731050941760,0.55,2909.3,2908.8,3.31404336]
[1731050943560,0.7908,2909.4,2909.1,3.31404336]
[1731050949882,0.7908,2909.4,2908.9,0.7678]
[1731050950199,0.7908,2909.4,2908.8,3.31404336]
[1731050952000,0.1351177,2910.3,2908.8,3.31404336]